fUST/lending_fUST_20240826
["ID","MTS","AMOUNT","RATE_DAILY","PERIOD"]
[336061098,1724685039160,-500.0,0.0001151,2]
[336061099,1724685039169,-500.0,0.0001151,2]
[336061100,1724685039179,-942.87,0.0001151,2]
[336061101,1724685039189,-161.16144554,0.0001151,2]
[336061102,1724685039198,-500.0,0.0001151,2]
[336061103,1724685039207,-500.0,0.0001151,2]
[336061104,1724685039217,-500.0,0.0001151,2]
[336061105,1724685039226,-500.0,0.0001151,2]
[336061106,1724685039236,-500.0,0.0001151,2]
[336061107,1724685039246,-500.0,0.0001151,2]
[336061108,1724685039255,-500.0,0.0001151,2]
[336061109,1724685039264,-726.35,0.0001151,2]
[336061110,1724685039274,-500.0,0.0001151,2]
[336061111,1724685039284,-762.09,0.0001151,2]
[336061112,1724685039293,-869.31,0.0001151,2]
[336061113,1724685039304,-500.0,0.0001151,2]
[336061114,1724685039313,-958.41,0.0001151,2]
[336061115,1724685039328,-500.0,0.0001151,2]
[336061116,1724685039337,-523.27,0.0001151,2]
[336061117,1724685039347,-548.2639,0.0001151,2]
[336061118,1724685039356,-738.21,0.0001151,2]
[336061119,1724685039366,-500.0,0.0001151,2]
[336061120,1724685039375,-500.0,0.0001151,2]
[336061121,1724685039384,-500.0,0.0001151,2]
[336061122,1724685039394,-500.0,0.0001151,2]
[336061123,1724685039404,-500.70870658,0.0001151,2]
[336061124,1724685039414,-500.0,0.0001151,2]
[336061125,1724685039424,-500.0,0.0001151,2]
[336061126,1724685039433,-500.0,0.0001151,2]
[336061127,1724685039443,-602.69,0.0001151,2]
[336061128,1724685039453,-908.5,0.0001151,2]
[336061129,1724685039462,-946.35,0.0001151,2]
[336061130,1724685039472,-500.0,0.0001151,2]
[336061131,1724685039481,-649.57,0.0001151,2]
[336061132,1724685039491,-500.0,0.0001151,2]
[336061133,1724685039501,-521.03313257,0.0001151,2]
[336061134,1724685039511,-596.68,0.0001151,2]
[336061135,1724685039524,-500.0,0.0001151,2]
[336061136,1724685039534,-621.42,0.0001151,2]
[336061137,1724685039543,-500.0,0.0001151,2]
[336061138,1724685039552,-500.0,0.0001151,2]
[336061139,1724685039563,-500.0,0.0001151,2]
[336061140,1724685039579,-694.43,0.0001151,2]
[336061141,1724685039588,-1774.42,0.0001151,2]
[336061142,1724685039599,-500.0,0.0001151,2]
[336061143,1724685039610,-18410.3,0.0001151,2]
[336061144,1724685039619,-500.0,0.0001151,2]
[336061145,1724685039628,-500.0,0.0001151,2]
[336061146,1724685039638,-500.0,0.0001151,2]
[336061147,1724685039647,-863.58,0.0001151,2]
[336061148,1724685039657,-801.96,0.0001151,2]
[336061149,1724685039667,-500.0,0.0001151,2]
[336061150,1724685039676,-500.0,0.0001151,2]
[336061151,1724685039686,-500.0,0.0001151,2]
[336061152,1724685039695,-888.01,0.0001151,2]
[336061153,1724685039706,-153.01881869,0.0001151,2]
[336061154,1724685039716,-500.0,0.0001151,2]
[336061155,1724685039726,-1012.69,0.0001151,2]
[336061156,1724685039736,-590.21,0.0001151,2]
[336061157,1724685039746,-497.03208302,0.0001151,2]
[336061158,1724685039756,-500.0,0.0001151,2]
[336061159,1724685039766,-500.0,0.0001151,2]
[336061160,1724685039989,-500.06,0.0001151,2]
[336061161,1724685039998,-566.56,0.0001151,2]
[336061162,1724685040008,-538.63,0.0001151,2]
[336061163,1724685040018,-500.0,0.0001151,2]
[336061164,1724685040028,-790.28,0.0001151,2]
[336061165,1724685040037,-500.0,0.0001151,2]
[336061166,1724685040047,-864.67,0.0001151,2]
[336061167,1724685040057,-500.0,0.0001151,2]
[336061168,1724685040070,-500.0,0.0001151,2]
[336061169,1724685040079,-500.0,0.0001151,2]
[336061170,1724685040089,-500.0,0.0001151,2]
[336061172,1724685040098,-545.54,0.0001151,2]
[336061173,1724685040108,-500.0,0.0001151,2]
[336061175,1724685040118,-459.96114215,0.0001151,2]
[336061176,1724685040128,-500.0,0.0001151,2]
[336061177,1724685040137,-500.0,0.0001151,2]
[336061178,1724685040147,-914.84,0.0001151,2]
[336061179,1724685040156,-500.0,0.0001151,2]
[336061180,1724685040166,-500.0,0.0001151,2]
[336061181,1724685040175,-1128.96,0.0001151,2]
[336061182,1724685040184,-557.82,0.0001151,2]
[336061183,1724685040193,-500.0,0.0001151,2]
[336061184,1724685040203,-500.0,0.0001151,2]
[336061185,1724685040212,-500.0,0.0001151,2]
[336061186,1724685040222,-534.61,0.0001151,2]
[336061188,1724685040232,-1112.32,0.0001151,2]
[336061190,1724685040241,-504.03332207,0.0001151,2]
[336061192,1724685040251,-500.0,0.0001151,2]
[336061194,1724685040260,-500.0,0.0001151,2]
[336061195,1724685040270,-500.0,0.0001151,2]
[336061196,1724685040280,-500.0,0.0001151,2]
[336061197,1724685040290,-500.0,0.0001151,2]
[336061198,1724685040300,-505.49,0.0001151,2]
[336061199,1724685040310,-500.0,0.0001151,2]
[336061200,1724685040324,-500.0,0.0001151,2]
[336061201,1724685040335,-500.0,0.0001151,2]
[336061202,1724685040344,-501.58692362,0.0001151,2]
[336061203,1724685040355,-500.0,0.0001151,2]
[336061204,1724685040365,-500.0,0.0001151,2]
[336061205,1724685040374,-500.0,0.0001151,2]
[336061206,1724685040384,-350.0,0.0001151,2]
[336061207,1724685040393,-500.0,0.0001151,2]
[336061208,1724685040403,-500.0,0.0001151,2]
[336061209,1724685040415,-500.0,0.0001151,2]
[336061210,1724685040426,-500.0,0.0001151,2]
[336061211,1724685040435,-1017.06,0.0001151,2]
[336061212,1724685040445,-500.0,0.0001151,2]
[336061213,1724685040454,-500.45,0.0001151,2]
[336061214,1724685040464,-500.0,0.0001151,2]
[336061215,1724685040474,-500.0,0.0001151,2]
[336061216,1724685040484,-500.0,0.0001151,2]
[336061217,1724685040493,-500.0,0.0001151,2]
[336061218,1724685040503,-747.49,0.0001151,2]
[336061219,1724685040513,-929.71,0.0001151,2]
[336061220,1724685040526,-500.0,0.0001151,2]
[336061221,1724685040535,-500.0,0.0001151,2]
[336061222,1724685040544,-500.0,0.0001151,2]
[336061223,1724685040555,-500.0,0.0001151,2]
[336061224,1724685040567,-500.0,0.0001151,2]
[336061225,1724685040577,-636.44,0.0001151,2]
[336061226,1724685040586,-500.0,0.0001151,2]
[336061227,1724685040596,-2798.37,0.0001151,2]
[336061228,1724685040605,-500.0,0.0001151,2]
[336061229,1724685040615,-500.0,0.00011511,2]
[336061230,1724685040623,-500.0,0.00011511,2]
[336061231,1724685040633,-500.0,0.00011511,2]
[336061232,1724685040642,-849.48,0.00011511,2]
[336061233,1724685040652,-577.09,0.00011511,2]
[336061234,1724685040662,-528.5,0.00011511,2]
[336061235,1724685040671,-500.0,0.00011511,2]
[336061236,1724685040680,-586.7,0.00011511,2]
[336061237,1724685040690,-500.0,0.00011511,2]
[336061238,1724685040700,-500.0,0.00011511,2]
[336061239,1724685040709,-500.0,0.00011511,2]
[336061240,1724685040719,-500.0,0.00011511,2]
[336061241,1724685040728,-500.0,0.00011511,2]
[336061242,1724685040738,-500.0,0.00011511,2]
[336061243,1724685040748,-500.0,0.00011511,2]
[336061244,1724685040758,-500.0,0.00011511,2]
[336061245,1724685040767,-500.0,0.00011511,2]
[336061246,1724685040777,-500.0,0.00011512,2]
[336061247,1724685040786,-500.0,0.00011512,2]
[336061248,1724685040796,-510.96989254,0.00011512,2]
[336061249,1724685040806,-544.28,0.00011512,2]
[336061250,1724685040816,-500.07,0.00011512,2]
[336061251,1724685040825,-500.0,0.00011512,2]
[336061252,1724685040834,-500.0,0.00011512,2]
[336061253,1724685040844,-500.0,0.00011512,2]
[336061254,1724685040853,-500.0,0.00011512,2]
[336061255,1724685040863,-579.85,0.00011512,2]
[336061256,1724685040873,-556.56,0.00011512,2]
[336061257,1724685040882,-500.0,0.00011512,2]
[336061258,1724685040891,-500.0,0.00011512,2]
[336061259,1724685040901,-500.0,0.00011512,2]
[336061260,1724685040909,-500.0,0.00011512,2]
[336061261,1724685040919,-500.0,0.00011512,2]
[336061262,1724685040929,-500.0,0.00011512,2]
[336061263,1724685040938,-500.0,0.00011512,2]
[336061264,1724685040947,-500.0,0.00011512,2]
[336061265,1724685040956,-500.0,0.00011512,2]
[336061266,1724685040965,-500.0,0.00011512,2]
[336061267,1724685040975,-509.98,0.00011512,2]
[336061268,1724685040983,-359.45164017,0.00011512,2]
[336061269,1724685040993,-500.0,0.00011512,2]
[336061270,1724685041002,-702.72,0.00011512,2]
[336061271,1724685041011,-500.0,0.00011512,2]
[336061272,1724685041020,-500.0,0.00011512,2]
[336061273,1724685041029,-500.0,0.00011512,2]
[336061274,1724685041039,-266.65447245,0.00011512,2]
[336061275,1724685041048,-500.0,0.00011512,2]
[336061276,1724685041057,-500.0,0.00011512,2]
[336061277,1724685041067,-500.0,0.00011512,2]
[336061278,1724685041076,-500.0,0.00011512,2]
[336061279,1724685041085,-477.6779897,0.00011512,2]
[336061280,1724685041095,-500.0,0.00011512,2]
[336061281,1724685041104,-500.0,0.00011512,2]
[336061282,1724685041113,-500.0,0.00011512,2]
[336061283,1724685041123,-500.0,0.00011512,2]
[336061284,1724685041132,-555.74459947,0.00011512,2]
[336061285,1724685041142,-541.16942906,0.00011512,2]
[336061286,1724685041151,-500.0,0.00011512,2]
[336061287,1724685041161,-500.0,0.00011512,2]
[336061288,1724685041170,-614.05,0.00011512,2]
[336061289,1724685041180,-500.0,0.00011512,2]
[336061290,1724685041189,-500.0,0.00011512,2]
[336061291,1724685041198,-500.0,0.00011512,2]
[336061292,1724685041208,-500.0,0.00011512,2]
[336061293,1724685041217,-500.87094952,0.00011512,2]
[336061294,1724685041226,-500.0,0.00011512,2]
[336061295,1724685041235,-500.0,0.00011512,2]
[336061296,1724685041245,-500.0,0.00011512,2]
[336061297,1724685041255,-639.8,0.00011512,2]
[336061298,1724685041264,-500.0,0.00011512,2]
[336061299,1724685041274,-500.0,0.00011512,2]
[336061300,1724685041283,-500.0,0.00011512,2]
[336061301,1724685041292,-500.0,0.00011512,2]
[336061302,1724685041301,-508.34,0.00011512,2]
[336061303,1724685041310,-500.0,0.00011512,2]
[336061304,1724685041320,-500.0,0.00011512,2]
[336061305,1724685041330,-551.548176,0.00011512,2]
[336061306,1724685041339,-500.0,0.00011512,2]
[336061307,1724685041348,-500.0,0.00011512,2]
[336061308,1724685041357,-501.46363252,0.00011512,2]
[336061309,1724685041367,-500.0,0.00011512,2]
[336061310,1724685041376,-500.0,0.00011512,2]
[336061311,1724685041385,-500.0,0.00011512,2]
[336061312,1724685041394,-500.0,0.00011512,2]
[336061313,1724685041403,-750.87,0.00011512,2]
[336061314,1724685041413,-500.0,0.00011512,2]
[336061315,1724685041422,-535.81711534,0.00011512,2]
[336061316,1724685041431,-500.0,0.00011512,2]
[336061317,1724685041441,-756.42,0.00011512,2]
[336061318,1724685041451,-500.0,0.00011512,2]
[336061319,1724685041460,-500.0,0.00011512,2]
[336061320,1724685041469,-500.0,0.00011512,2]
[336061321,1724685041478,-500.0,0.00011512,2]
[336061322,1724685041487,-500.0,0.00011512,2]
[336061323,1724685041496,-500.0,0.00011512,2]
[336061324,1724685041505,-440.56785723,0.00011512,2]
[336061325,1724685041514,-500.0,0.00011512,2]
[336061326,1724685041527,-500.0,0.00011512,2]
[336061327,1724685041537,-500.0,0.00011512,2]
[336061328,1724685041546,-500.0,0.00011512,2]
[336061329,1724685041555,-540.49,0.00011512,2]
[336061330,1724685041567,-500.0,0.00011512,2]
[336061331,1724685041585,-500.0,0.00011512,2]
[336061332,1724685041596,-500.0,0.00011512,2]
[336061333,1724685041605,-675.49,0.00011512,2]
[336061334,1724685041615,-502.05815287,0.00011512,2]
[336061335,1724685041624,-500.0,0.00011512,2]
[336061336,1724685041633,-500.0,0.00011512,2]
[336061337,1724685041641,-500.0,0.00011512,2]
[336061338,1724685041651,-500.0,0.00011512,2]
[336061339,1724685041660,-500.0,0.00011512,2]
[336061340,1724685041669,-500.0,0.00011512,2]
[336061341,1724685041678,-500.0,0.00011512,2]
[336061342,1724685041686,-500.0,0.00011512,2]
[336061343,1724685041695,-500.0,0.00011512,2]
[336061344,1724685041705,-500.40377866,0.00011512,2]
[336061345,1724685041714,-500.0,0.00011512,2]
[336061346,1724685041723,-500.0,0.00011512,2]
[336061347,1724685041732,-500.0,0.00011512,2]
[336061348,1724685041741,-500.0,0.00011512,2]
[336061349,1724685041751,-500.0,0.00011512,2]
[336061350,1724685041760,-598.10083407,0.00011512,2]
[336061351,1724685041770,-500.0,0.00011512,2]
[336061352,1724685041779,-500.0,0.00011512,2]
[336061353,1724685041789,-644.38,0.00011512,2]
[336061354,1724685041798,-534.89,0.00011512,2]
[336061355,1724685041807,-500.0,0.00011512,2]
[336061356,1724685041818,-500.0,0.00011512,2]
[336061357,1724685041827,-500.0,0.00011512,2]
[336061358,1724685041837,-500.74279137,0.00011512,2]
[336061359,1724685041848,-500.0,0.00011512,2]
[336061360,1724685041857,-646.22,0.00011512,2]
[336061361,1724685041867,-529.15,0.00011512,2]
[336061362,1724685041876,-500.0,0.00011512,2]
[336061363,1724685041886,-500.0,0.00011512,2]
[336061364,1724685041895,-500.0,0.00011512,2]
[336061365,1724685041905,-500.0,0.00011512,2]
[336061366,1724685041914,-500.66762801,0.00011512,2]
[336061367,1724685041924,-500.0,0.00011512,2]
[336061368,1724685041934,-500.0,0.00011512,2]
[336061369,1724685041944,-500.0,0.00011512,2]
[336061370,1724685041954,-500.0,0.00011512,2]
[336061371,1724685041964,-503.31,0.00011512,2]
[336061372,1724685041974,-500.0,0.00011512,2]
[336061373,1724685041984,-500.0,0.00011512,2]
[336061374,1724685041994,-500.0,0.00011512,2]
[336061375,1724685042004,-500.0,0.00011512,2]
[336061376,1724685042014,-500.0,0.00011512,2]
[336061377,1724685042023,-500.0,0.00011512,2]
[336061378,1724685042033,-500.0,0.00011512,2]
[336061379,1724685042042,-500.0,0.00011512,2]
[336061380,1724685042051,-500.57984176,0.00011512,2]
[336061381,1724685042060,-503.79745424,0.00011512,2]
[336061382,1724685042071,-500.0,0.00011512,2]
[336061383,1724685042082,-500.0,0.00011512,2]
[336061384,1724685042092,-500.0,0.00011512,2]
[336061385,1724685042102,-503.10222192,0.00011512,2]
[336061386,1724685042112,-699.14,0.00011512,2]
[336061387,1724685042122,-736.6,0.00011512,2]
[336061388,1724685042132,-717.04,0.00011512,2]
[336061389,1724685042144,-500.0,0.00011512,2]
[336061390,1724685042153,-571.68,0.00011512,2]
[336061391,1724685042162,-500.0,0.00011512,2]
[336061392,1724685042172,-500.0,0.00011512,2]
[336061393,1724685042182,-805.73,0.00011512,2]
[336061394,1724685042192,-500.0,0.00011512,2]
[336061395,1724685042201,-607.12,0.00011512,2]
[336061396,1724685042211,-501.0647853,0.00011512,2]
[336061397,1724685042221,-500.0,0.00011512,2]
[336061398,1724685042230,-514.67,0.00011512,2]
[336061399,1724685042239,-706.12,0.00011512,2]
[336061400,1724685042250,-500.0,0.00011512,2]
[336061401,1724685042259,-500.0,0.00011512,2]
[336061402,1724685042270,-584.88,0.00011512,2]
[336061403,1724685042281,-500.0,0.00011512,2]
[336061404,1724685042291,-500.52142647,0.00011512,2]
[336061405,1724685042301,-500.0,0.00011512,2]
[336061406,1724685042310,-500.0,0.00011512,2]
[336061407,1724685042321,-500.0,0.00011512,2]
[336061408,1724685042330,-1145.89,0.00011512,2]
[336061409,1724685042340,-500.0,0.00011512,2]
[336061410,1724685042350,-500.0,0.00011512,2]
[336061411,1724685042359,-500.0,0.00011512,2]
[336061412,1724685042368,-580.56,0.00011512,2]
[336061413,1724685042377,-500.0,0.00011512,2]
[336061414,1724685042387,-978.16,0.00011512,2]
[336061415,1724685042396,-500.80567025,0.00011512,2]
[336061416,1724685042405,-500.0,0.00011512,2]
[336061417,1724685042415,-500.0,0.00011512,2]
[336061418,1724685042425,-656.71,0.00011512,2]
[336061419,1724685042434,-514.1431419,0.00011512,2]
[336061420,1724685042445,-500.0,0.00011512,2]
[336061421,1724685042455,-500.0,0.00011512,2]
[336061422,1724685042465,-543.30132095,0.00011512,2]
[336061423,1724685042474,-500.0,0.00011512,2]
[336061424,1724685042484,-500.0,0.00011512,2]
[336061425,1724685042493,-500.0,0.00011512,2]
[336061426,1724685042503,-500.0,0.00011512,2]
[336061427,1724685042513,-500.0,0.00011512,2]
[336061428,1724685042525,-510.34,0.00011512,2]
[336061429,1724685042534,-500.0,0.00011512,2]
[336061430,1724685042543,-500.0,0.00011512,2]
[336061431,1724685042553,-500.0,0.00011512,2]
[336061432,1724685042562,-813.01,0.00011512,2]
[336061433,1724685042573,-500.0,0.00011512,2]
[336061434,1724685042583,-500.0,0.00011512,2]
[336061435,1724685042592,-514.07150007,0.00011512,2]
[336061436,1724685042604,-795.75,0.00011512,2]
[336061437,1724685042614,-500.0,0.00011512,2]
[336061438,1724685042623,-500.0,0.00011512,2]
[336061439,1724685042633,-712.87,0.00011512,2]
[336061440,1724685042643,-500.0,0.00011512,2]
[336061441,1724685042653,-500.0,0.00011512,2]
[336061442,1724685042663,-500.0,0.00011512,2]
[336061443,1724685042673,-500.0,0.00011512,2]
[336061444,1724685042683,-500.0,0.00011512,2]
[336061445,1724685042692,-911.47,0.00011512,2]
[336061446,1724685042703,-500.0,0.00011512,2]
[336061447,1724685042712,-500.0,0.00011512,2]
[336061448,1724685042722,-500.0,0.00011512,2]
[336061449,1724685042731,-708.5,0.00011512,2]
[336061450,1724685042742,-690.26,0.00011512,2]
[336061451,1724685042752,-529.51,0.00011512,2]
[336061452,1724685042761,-500.0,0.00011512,2]
[336061453,1724685042770,-500.0,0.00011512,2]
[336061454,1724685042780,-500.0,0.00011512,2]
[336061455,1724685042790,-500.0,0.00011512,2]
[336061456,1724685042799,-821.29,0.00011512,2]
[336061457,1724685042810,-500.0,0.00011512,2]
[336061458,1724685042821,-500.0,0.00011512,2]
[336061459,1724685042831,-500.0,0.00011512,2]
[336061460,1724685042842,-588.16,0.00011512,2]
[336061461,1724685042851,-521.16073387,0.00011512,2]
[336061462,1724685042861,-500.0,0.00011512,2]
[336061463,1724685042871,-500.0,0.00011512,2]
[336061464,1724685042881,-732.16,0.00011512,2]
[336061465,1724685042891,-847.62,0.00011512,2]
[336061466,1724685042901,-500.0,0.00011512,2]
[336061467,1724685042911,-500.0,0.00011512,2]
[336061468,1724685042920,-500.0,0.00011512,2]
[336061469,1724685042931,-500.0,0.00011512,2]
[336061470,1724685042941,-500.0,0.00011512,2]
[336061471,1724685042951,-500.0,0.00011512,2]
[336061472,1724685042960,-500.0,0.00011512,2]
[336061473,1724685042970,-500.0,0.00011512,2]
[336061474,1724685042981,-500.0,0.00011512,2]
[336061475,1724685042990,-500.0,0.00011512,2]
[336061476,1724685043000,-500.0,0.00011512,2]
[336061477,1724685043011,-500.0,0.00011512,2]
[336061478,1724685043022,-500.0,0.00011512,2]
[336061479,1724685043033,-500.0,0.00011512,2]
[336061480,1724685043043,-717.29,0.00011512,2]
[336061482,1724685043053,-501.94690989,0.00011512,2]
[336061483,1724685043063,-500.0,0.00011512,2]
[336061484,1724685043080,-500.7129588,0.00011512,2]
[336061485,1724685043090,-500.9909378,0.00011512,2]
[336061486,1724685043100,-500.0,0.00011512,2]
[336061488,1724685043110,-500.0,0.00011512,2]
[336061490,1724685043120,-500.0,0.00011512,2]
[336061492,1724685043130,-500.0,0.00011512,2]
[336061495,1724685043139,-500.0,0.00011512,2]
[336061497,1724685043148,-500.0,0.00011512,2]
[336061498,1724685043158,-500.0,0.00011512,2]
[336061499,1724685043167,-500.0,0.00011512,2]
[336061501,1724685043177,-688.03,0.00011512,2]
[336061503,1724685043187,-500.0,0.00011512,2]
[336061505,1724685043197,-500.0,0.00011512,2]
[336061507,1724685043206,-500.0,0.00011512,2]
[336061509,1724685043216,-500.0,0.00011512,2]
[336061511,1724685043226,-261.11104018,0.00011512,2]
[336061513,1724685043237,-500.0,0.00011512,2]
[336061515,1724685043247,-500.0,0.00011512,2]
[336061517,1724685043256,-500.8628679,0.00011512,2]
[336061519,1724685043266,-500.0,0.00011512,2]
[336061520,1724685043276,-500.0,0.00011512,2]
[336061521,1724685043285,-500.0,0.00011512,2]
[336061522,1724685043295,-500.9291722,0.00011512,2]
[336061523,1724685043304,-500.0,0.00011512,2]
[336061524,1724685043313,-500.76212888,0.00011512,2]
[336061525,1724685043329,-510.0432776,0.00011512,2]
[336061526,1724685043339,-500.0,0.00011512,2]
[336061527,1724685043349,-500.0,0.00011512,2]
[336061528,1724685043358,-500.0,0.00011512,2]
[336061529,1724685043368,-500.0,0.00011512,2]
[336061530,1724685043377,-500.0,0.00011512,2]
[336061531,1724685043387,-500.0,0.00011512,2]
[336061532,1724685043396,-500.88101691,0.00011512,2]
[336061533,1724685043405,-500.0,0.00011512,2]
[336061534,1724685043415,-595.11,0.00011512,2]
[336061535,1724685043424,-500.0,0.00011512,2]
[336061536,1724685043433,-731.94,0.00011512,2]
[336061537,1724685043443,-500.0,0.00011512,2]
[336061538,1724685043452,-500.0,0.00011512,2]
[336061539,1724685043461,-589.69,0.00011512,2]
[336061540,1724685043472,-500.0,0.00011512,2]
[336061541,1724685043482,-500.0,0.00011512,2]
[336061542,1724685043491,-500.0,0.00011512,2]
[336061543,1724685043500,-899.37,0.00011512,2]
[336061544,1724685043512,-500.0,0.00011513,2]
[336061545,1724685043525,-508.18806498,0.00011513,2]
[336061546,1724685043544,-460.04620897,0.00011513,2]
[336061547,1724685043557,-500.0,0.00011513,2]
[336061548,1724685043566,-500.0,0.00011513,2]
[336061549,1724685043578,-500.0,0.00011513,2]
[336061550,1724685043587,-500.0,0.00011513,2]
[336061551,1724685043597,-500.0,0.00011513,2]
[336061552,1724685043607,-500.0,0.00011513,2]
[336061553,1724685043617,-500.88151213,0.00011513,2]
[336061554,1724685043627,-500.0,0.00011513,2]
[336061555,1724685043639,-514.41696992,0.00011513,2]
[336061556,1724685043649,-500.0,0.00011513,2]
[336061557,1724685043659,-500.33429615,0.00011513,2]
[336061558,1724685043669,-500.0,0.00011513,2]
[336061559,1724685043679,-500.0,0.00011513,2]
[336061560,1724685043688,-518.72962149,0.00011513,2]
[336061561,1724685043699,-501.84087692,0.00011513,2]
[336061562,1724685043709,-500.0,0.00011513,2]
[336061563,1724685043718,-500.0,0.00011513,2]
[336061564,1724685043728,-500.0,0.00011513,2]
[336061565,1724685043738,-500.0,0.00011513,2]
[336061566,1724685043748,-500.0,0.00011513,2]
[336061567,1724685043758,-501.4283803,0.00011513,2]
[336061568,1724685043767,-500.0,0.00011513,2]
[336061569,1724685043777,-500.0,0.00011513,2]
[336061570,1724685043787,-500.0,0.00011513,2]
[336061571,1724685043797,-500.0,0.00011513,2]
[336061572,1724685043806,-500.0,0.00011513,2]
[336061573,1724685043816,-500.0,0.00011513,2]
[336061574,1724685043828,-500.0,0.00011513,2]
[336061575,1724685043837,-500.0,0.00011513,2]
[336061576,1724685043849,-500.0,0.00011513,2]
[336061577,1724685043859,-809.22,0.00011513,2]
[336061578,1724685043870,-540.21,0.00011513,2]
[336061579,1724685043880,-805.39,0.00011513,2]
[336061580,1724685043889,-500.0,0.00011513,2]
[336061581,1724685043899,-500.0,0.00011513,2]
[336061582,1724685043908,-553.64,0.00011513,2]
[336061583,1724685043918,-500.0,0.00011513,2]
[336061584,1724685043928,-500.0,0.00011513,2]
[336061585,1724685043937,-600.12454703,0.00011513,2]
[336061586,1724685043947,-500.0,0.00011513,2]
[336061587,1724685043957,-542.27,0.00011513,2]
[336061588,1724685043966,-500.0,0.00011513,2]
[336061589,1724685043975,-500.0,0.00011513,2]
[336061590,1724685044155,-500.0,0.00011513,2]
[336061591,1724685044165,-527.46,0.00011513,2]
[336061592,1724685044174,-500.0,0.00011513,2]
[336061593,1724685044183,-500.0,0.00011513,2]
[336061594,1724685044193,-817.78,0.00011513,2]
[336061595,1724685044202,-506.44,0.00011513,2]
[336061596,1724685044211,-531.16,0.00011513,2]
[336061597,1724685044220,-500.0,0.00011513,2]
[336061598,1724685044230,-500.0,0.00011513,2]
[336061599,1724685044239,-500.0,0.00011513,2]
[336061600,1724685044249,-505.85,0.00011513,2]
[336061601,1724685044258,-500.0,0.00011513,2]
[336061602,1724685044268,-500.0,0.00011513,2]
[336061603,1724685044277,-696.47,0.00011513,2]
[336061604,1724685044286,-610.76,0.00011513,2]
[336061605,1724685044295,-619.87,0.00011513,2]
[336061606,1724685044305,-489.77542257,0.00011514,2]
[336061607,1724685044314,-500.0,0.00011514,2]
[336061608,1724685044326,-500.0,0.00011514,2]
[336061609,1724685044335,-500.0,0.00011514,2]
[336061610,1724685044345,-500.0,0.00011514,2]
[336061611,1724685044355,-500.0,0.00011514,2]
[336061612,1724685044364,-500.0,0.00011514,2]
[336061613,1724685044374,-500.0,0.00011514,2]
[336061614,1724685044383,-493.21664796,0.00011514,2]
[336061615,1724685044392,-500.0,0.00011515,2]
[336061616,1724685044401,-500.0,0.00011515,2]
[336061617,1724685044412,-500.0,0.00011515,2]
[336061618,1724685044422,-165.44609184,0.00011515,2]
[336061619,1724685044431,-500.0,0.00011573,2]
[336061620,1724685044441,-831.45328056,0.00011686,2]